fUSD/lending_fUSD_20250607
["ID","MTS","AMOUNT","RATE_DAILY","PERIOD"]
[364869441,1749282717342,-480.0,0.00028712,5]
[364869442,1749282717352,-1150.03,0.00028712,5]
[364869443,1749282717362,-1505.03,0.00028712,5]
[364869444,1749282717372,-1473.87,0.00028712,5]
[364869445,1749282717382,-2996.31,0.00028712,5]
[364869446,1749282717392,-2181.17,0.00028712,5]
[364869447,1749282717402,-930.43,0.00028712,5]
[364869448,1749282717414,-7442.14,0.00028712,5]
[364869449,1749282717424,-480.0,0.00028712,5]
[364869450,1749282717436,-5891.72,0.00028712,5]
[364869451,1749282717447,-4307.55,0.00028712,5]
[364869452,1749282717458,-956.19,0.00028712,5]
[364869453,1749282717468,-798.07,0.00028712,5]
[364869454,1749282717480,-1206.45,0.00028712,5]
[364869455,1749282717491,-480.0,0.00028712,5]
[364869456,1749282717500,-480.0,0.00028712,5]
[364869457,1749282717509,-1267.21,0.00028712,5]
[364869458,1749282717520,-480.0,0.00028712,5]
[364869459,1749282717529,-480.0,0.00028712,5]
[364869460,1749282717540,-5617.32,0.00028712,5]
[364869461,1749282717549,-798.33,0.00028712,5]
[364869462,1749282717558,-1111.08,0.00028712,5]
[364869463,1749282717568,-1613.36,0.00028712,5]
[364869464,1749282717577,-665.13,0.00028712,5]
[364869465,1749282717587,-984.27,0.00028712,5]
[364869466,1749282717597,-8194.39,0.00028712,5]
[364869467,1749282717607,-10955.06,0.00028712,5]
[364869468,1749282717617,-480.0,0.00028712,5]
[364869469,1749282717627,-835.03,0.00028712,5]
[364869470,1749282717636,-3592.23,0.00028712,5]
[364869471,1749282717646,-675.89,0.00028712,5]
[364869472,1749282717655,-480.0,0.00028712,5]
[364869473,1749282717664,-1342.98,0.00028712,5]
[364869474,1749282717674,-3803.92,0.00028712,5]
[364869475,1749282717684,-2538.94,0.00028712,5]
[364869476,1749282717694,-1427.01,0.00028712,5]
[364869477,1749282717703,-1719.89,0.00028712,5]
[364869478,1749282717714,-1821.11,0.00028712,5]
[364869479,1749282717724,-1325.93,0.00028712,5]
[364869480,1749282717733,-480.0,0.00028712,5]
[364869481,1749282717744,-1072.0,0.00028712,5]
[364869482,1749282717753,-1892.42,0.00028712,5]
[364869483,1749282717764,-1000.0,0.00028712,5]
[364869484,1749282717774,-63362.5,0.00028712,5]
[364869485,1749282717784,-1666.49,0.00028712,5]
[364869486,1749282717795,-769.25,0.00028712,5]
[364869487,1749282717805,-480.0,0.00028712,5]
[364869488,1749282717815,-622.41,0.00028712,5]
[364869489,1749282717825,-480.0,0.00028712,5]
[364869490,1749282717835,-480.0,0.00028712,5]
[364869491,1749282717845,-802.83,0.00028712,5]
[364869492,1749282717855,-3297.59,0.00028712,5]
[364869493,1749282717865,-1298.4,0.00028712,5]
[364869494,1749282717875,-1257.45,0.00028712,5]
[364869495,1749282717888,-619.63,0.00028712,5]
[364869496,1749282717899,-480.0,0.00028712,5]
[364869497,1749282717909,-2010.42,0.00028712,5]
[364869498,1749282717919,-1795.02,0.00028712,5]
[364869499,1749282717931,-2147.53,0.00028712,2]
[364869500,1749282717942,-480.0,0.00028712,5]
[364869501,1749282717953,-2644.51,0.00028712,5]
[364869502,1749282717966,-1671.91,0.00028712,5]
[364869503,1749282717977,-480.0,0.00028712,5]
[364869504,1749282717988,-480.0,0.00028712,5]
[364869505,1749282717999,-2770.74,0.00028712,5]
[364869506,1749282718011,-3633.12,0.00028712,5]
[364869507,1749282718021,-480.0,0.00028712,5]
[364869508,1749282718031,-6110.32,0.00028712,5]
[364869509,1749282718042,-1513.66,0.00028712,5]
[364869510,1749282718052,-1788.9,0.00028712,5]
[364869511,1749282718062,-814.18,0.00028712,5]
[364869512,1749282718071,-11876.34,0.00028712,5]
[364869513,1749282718081,-959.52,0.00028712,5]
[364869514,1749282718091,-2522.98,0.00028712,5]
[364869515,1749282718101,-1093.12,0.00028712,5]
[364869516,1749282718110,-1813.84,0.00028712,5]
[364869517,1749282718120,-481.61,0.00028712,5]
[364869518,1749282718129,-480.0,0.00028712,5]
[364869519,1749282718139,-6018.65,0.00028712,5]
[364869520,1749282718148,-1581.96,0.00028712,5]
[364869521,1749282718158,-855.47,0.00028712,5]
[364869522,1749282718167,-480.0,0.00028712,5]
[364869523,1749282718177,-480.0,0.00028712,5]
[364869524,1749282718187,-480.0,0.00028712,5]
[364869525,1749282718196,-5571.7,0.00028712,5]
[364869526,1749282718206,-1003.3,0.00028712,5]
[364869527,1749282718215,-1086.55,0.00028712,5]
[364869528,1749282718224,-1345.91,0.00028712,5]
[364869529,1749282718234,-1327.04,0.00028712,5]
[364869530,1749282718243,-2008.91,0.00028712,5]
[364869531,1749282718253,-1675.33,0.00028712,5]
[364869532,1749282718263,-734.71,0.00028712,5]
[364869533,1749282718273,-489.86566549,0.00028712,5]
[364869534,1749282718282,-1529.93,0.00028712,5]
[364869535,1749282718292,-480.0,0.00028712,5]
[364869536,1749282718303,-596.66,0.00028712,5]
[364869537,1749282718313,-480.0,0.00028712,5]
[364869538,1749282718323,-1453.1,0.00028712,5]
[364869539,1749282718333,-3865.55,0.00028712,5]
[364869540,1749282718343,-3264.83,0.00028712,5]
[364869541,1749282718353,-967.54,0.00028712,5]
[364869542,1749282718363,-480.0,0.00028712,5]
[364869543,1749282718373,-871.56,0.00028712,5]
[364869544,1749282718383,-1458.57,0.00028712,5]
[364869545,1749282718393,-749.45,0.00028712,5]
[364869546,1749282718404,-480.0,0.00028712,5]
[364869547,1749282718414,-915.39,0.00028712,5]
[364869548,1749282718423,-4023.49,0.00028712,5]
[364869549,1749282718433,-1170.49,0.00028712,5]
[364869550,1749282718443,-480.0,0.00028712,5]
[364869551,1749282718453,-742.56,0.00028712,5]
[364869552,1749282718464,-594.14,0.00028712,5]
[364869553,1749282718474,-1731.59,0.00028712,5]
[364869554,1749282718484,-480.0,0.00028712,5]
[364869555,1749282718494,-480.0,0.00028712,5]
[364869556,1749282718504,-1143.16,0.00028712,5]
[364869557,1749282718514,-480.0,0.00028712,5]
[364869558,1749282718524,-2029.78,0.00028712,5]
[364869559,1749282718534,-2000.65,0.00028712,5]
[364869560,1749282718543,-480.0,0.00028712,5]
[364869561,1749282718553,-1386.31,0.00028712,5]
[364869562,1749282718563,-485.39,0.00028712,5]
[364869563,1749282718573,-683.94,0.00028712,5]
[364869564,1749282718583,-747.9,0.00028712,5]
[364869565,1749282718592,-1122.69,0.00028712,5]
[364869566,1749282718602,-480.0,0.00028712,5]
[364869567,1749282718611,-480.0,0.00028712,5]
[364869568,1749282718620,-480.0,0.00028712,5]
[364869569,1749282718630,-494.08,0.00028712,5]
[364869570,1749282718640,-518.65,0.00028712,5]
[364869571,1749282718649,-492.12,0.00028712,5]
[364869572,1749282718659,-1941.16,0.00028712,5]
[364869573,1749282718669,-788.44,0.00028712,5]
[364869574,1749282718679,-480.0,0.00028712,5]
[364869575,1749282718689,-480.0,0.00028712,5]
[364869576,1749282718699,-480.0,0.00028712,5]
[364869577,1749282718709,-499.42,0.00028712,5]
[364869578,1749282718778,-2403.78,0.00028712,5]
[364869579,1749282718788,-757.09,0.00028712,5]
[364869580,1749282718797,-480.0,0.00028712,5]
[364869581,1749282718808,-957.28,0.00028712,5]
[364869582,1749282718818,-697.95,0.00028712,5]
[364869583,1749282718828,-575.71,0.00028712,5]
[364869584,1749282718839,-480.0,0.00028712,5]
[364869585,1749282718848,-748.21,0.00028712,5]
[364869586,1749282718858,-480.0,0.00028712,5]
[364869587,1749282718868,-607.22,0.00028712,5]
[364869588,1749282718878,-480.0,0.00028712,5]
[364869589,1749282718892,-5005.59,0.00028712,5]
[364869590,1749282718916,-10865.99,0.00028712,5]
[364869591,1749282718926,-4322.98,0.00028712,5]
[364869592,1749282718937,-1739.86,0.00028712,5]
[364869593,1749282718947,-630.74,0.00028712,5]
[364869594,1749282718959,-480.0,0.00028712,5]
[364869595,1749282718970,-480.0,0.00028712,5]
[364869596,1749282718982,-1078.23,0.00028712,5]
[364869597,1749282718992,-480.0,0.00028712,5]
[364869598,1749282719002,-1387.38,0.00028712,5]
[364869599,1749282719012,-689.06,0.00028712,5]
[364869600,1749282719023,-480.0,0.00028712,5]
[364869601,1749282719033,-16410.82,0.00028712,5]
[364869602,1749282719042,-1650.11,0.00028712,5]
[364869603,1749282719053,-7442.43,0.00028712,5]
[364869604,1749282719062,-3593.96,0.00028712,5]
[364869605,1749282719072,-749.65,0.00028712,5]
[364869606,1749282719082,-2124.13,0.00028712,5]
[364869607,1749282719091,-590.0,0.00028712,5]
[364869608,1749282719101,-816.17,0.00028712,5]
[364869609,1749282719110,-665.9,0.00028712,5]
[364869610,1749282719121,-2227.22,0.00028712,5]
[364869611,1749282719132,-1352.48,0.00028712,5]
[364869612,1749282719142,-592.35,0.00028712,5]
[364869613,1749282719153,-507.82,0.00028712,5]
[364869614,1749282719164,-480.0,0.00028712,5]
[364869615,1749282719174,-1744.26,0.00028712,5]
[364869616,1749282719184,-480.0,0.00028712,5]
[364869617,1749282719194,-3612.7,0.00028712,5]
[364869618,1749282719204,-480.0,0.00028712,5]
[364869619,1749282719214,-480.0,0.00028712,5]
[364869620,1749282719224,-480.0,0.00028712,5]
[364869621,1749282719233,-480.0,0.00028712,5]
[364869622,1749282719243,-1656.96,0.00028712,5]
[364869623,1749282719253,-1260.39,0.00028712,5]
[364869624,1749282719263,-915.34,0.00028712,5]
[364869625,1749282719272,-480.0,0.00028712,5]
[364869626,1749282719282,-980.64,0.00028712,5]
[364869627,1749282719293,-3111.73,0.00028712,5]
[364869628,1749282719303,-642.18,0.00028712,5]
[364869629,1749282719313,-959.96,0.00028712,5]
[364869630,1749282719323,-480.0,0.00028712,5]
[364869631,1749282719333,-150.0,0.00028713,7]
[364869632,1749282719342,-150.0,0.00028718,7]
[364869633,1749282719352,-279.10775981,0.00028724,7]
[364869634,1749282719362,-218.84593086,0.00028724,7]
[364869635,1749282719372,-3000.44,0.0002874,24]
[364869636,1749282719381,-279.10775981,0.00028756,7]
[364869637,1749282719391,-218.84593086,0.00028756,7]
[364869638,1749282719401,-150.0,0.00028756,7]
[364869639,1749282719410,-150.0,0.00028757,7]
[364869640,1749282719420,-150.0,0.0002876,7]
[364869641,1749282719430,-1000.0,0.00028762,2]
[364869642,1749282719439,-150.0,0.00028764,7]
[364869643,1749282719448,-600.0,0.00028767,2]
[364869644,1749282719457,-600.0,0.00028767,2]
[364869645,1749282719467,-600.0,0.00028767,2]
[364869646,1749282719477,-600.0,0.00028767,2]
[364869647,1749282719488,-307.41163561,0.00028767,2]
[364869648,1749282719498,-5091.73,0.00028767,2]
[364869649,1749282719509,-150.0,0.00028773,2]
[364869650,1749282719520,-150.0,0.00028773,2]
[364869651,1749282719530,-150.0,0.00028773,2]
[364869652,1749282719540,-572.79025593,0.00028773,2]
[364869653,1749282719551,-4893.22236091,0.00028773,2]
[364869654,1749282719562,-47663.64663568,0.00028773,2]
[364869655,1749282719572,-151.0,0.00028773,7]
[364869656,1749282719581,-151.0,0.00028773,7]
[364869657,1749282719591,-151.0,0.00028773,7]
[364869658,1749282719602,-151.0,0.00028773,7]
[364869659,1749282719612,-279.10775981,0.00028788,7]
[364869660,1749282719621,-218.84593086,0.00028788,7]
[364869661,1749282719631,-150.0,0.0002879,7]
[364869662,1749282719641,-150.0,0.00028799,7]
[364869663,1749282719650,-711.07,0.000288,2]
[364869664,1749282719660,-1400.0,0.000288,2]
[364869665,1749282719670,-2650.25,0.000288,2]
[364869666,1749282719681,-283.028488,0.000288,7]
[364869667,1749282719693,-283.028488,0.000288,7]
[364869668,1749282719703,-151.0,0.000288,7]
[364869669,1749282719715,-1000.0,0.000288,2]
[364869670,1749282719726,-200.0,0.00028808,2]
[364869671,1749282719735,-200.0,0.00028808,2]
[364869672,1749282719745,-200.0,0.00028808,2]
[364869673,1749282719754,-400.0,0.00028808,13]
[364869674,1749282719764,-400.0,0.00028808,13]
[364869675,1749282719774,-400.0,0.00028808,13]
[364869676,1749282719784,-231.0,0.00028808,2]
[364869677,1749282719794,-400.0,0.00028808,13]
[364869678,1749282719803,-400.0,0.00028808,13]
[364869679,1749282719813,-400.0,0.00028808,13]
[364869680,1749282719823,-400.0,0.00028808,13]
[364869681,1749282719833,-210.0,0.00028808,13]
[364869682,1749282719842,-200.0,0.00028808,2]
[364869683,1749282719853,-200.0,0.00028808,2]
[364869684,1749282719863,-200.0,0.00028808,2]
[364869685,1749282719875,-200.0,0.00028808,2]
[364869686,1749282719889,-200.0,0.00028808,2]
[364869687,1749282719900,-400.0,0.00028808,13]
[364869688,1749282719916,-400.0,0.00028808,13]
[364869689,1749282719927,-400.0,0.00028808,13]
[364869690,1749282719937,-400.0,0.00028808,13]
[364869691,1749282719947,-400.0,0.00028808,13]
[364869692,1749282719959,-400.0,0.00028808,13]
[364869693,1749282719968,-400.0,0.00028808,13]
[364869694,1749282719978,-400.0,0.00028808,13]
[364869695,1749282719988,-400.0,0.00028808,13]
[364869696,1749282719997,-400.0,0.00028808,13]
[364869697,1749282720007,-400.0,0.00028808,13]
[364869698,1749282720017,-400.0,0.00028808,13]
[364869699,1749282720026,-400.0,0.00028808,13]
[364869700,1749282720036,-400.0,0.00028808,13]
[364869701,1749282720046,-400.0,0.00028808,13]
[364869702,1749282720056,-200.0,0.00028808,2]
[364869703,1749282720067,-200.0,0.00028808,2]
[364869704,1749282720076,-200.0,0.00028808,2]
[364869705,1749282720086,-200.0,0.00028808,2]
[364869706,1749282720096,-200.0,0.00028808,2]
[364869707,1749282720106,-200.0,0.00028808,2]
[364869708,1749282720116,-150.0,0.00028809,7]
[364869709,1749282720126,-279.10775981,0.0002882,7]
[364869710,1749282720136,-218.84593086,0.0002882,7]
[364869711,1749282720146,-150.0,0.00028822,7]
[364869712,1749282720156,-151.0,0.0002883,7]
[364869713,1749282720166,-151.0,0.0002883,7]
[364869714,1749282720175,-151.0,0.0002883,7]
[364869715,1749282720185,-151.0,0.0002883,7]
[364869716,1749282720195,-151.0,0.00028836,7]
[364869717,1749282720205,-150.0,0.00028839,2]
[364869718,1749282720215,-150.0,0.00028842,7]
[364869719,1749282720225,-279.10775981,0.00028852,7]
[364869720,1749282720234,-218.84593086,0.00028852,7]
[364869721,1749282720245,-150.0,0.00028854,7]
[364869722,1749282720255,-2000.0,0.00028855,2]
[364869723,1749282720265,-2000.0,0.00028855,2]
[364869724,1749282720274,-700.0,0.0002887,2]
[364869725,1749282720285,-150.0,0.00028872,7]
[364869726,1749282720295,-150.0,0.00028872,7]
[364869727,1749282720305,-151.0,0.00028876,7]
[364869728,1749282720314,-151.0,0.00028876,7]
[364869729,1749282720328,-151.0,0.00028876,7]
[364869730,1749282720338,-151.0,0.00028876,7]
[364869731,1749282720348,-151.0,0.00028876,7]
[364869732,1749282720358,-151.0,0.00028876,7]
[364869733,1749282720368,-151.0,0.00028876,7]
[364869734,1749282720378,-687.42033,0.00028876,7]
[364869735,1749282720388,-151.0,0.00028876,7]
[364869736,1749282720398,-687.42033,0.00028876,7]
[364869737,1749282720408,-151.0,0.00028876,7]
[364869738,1749282720417,-157.98744,0.00028876,7]
[364869739,1749282720427,-202.065599,0.00028876,7]
[364869740,1749282720437,-202.065599,0.00028876,7]
[364869741,1749282720447,-151.0,0.00028876,7]
[364869742,1749282720457,-151.0,0.00028876,7]
[364869743,1749282720467,-151.0,0.00028876,7]
[364869744,1749282720477,-210.078222,0.00028876,7]
[364869745,1749282720487,-151.0,0.00028876,7]
[364869746,1749282720496,-562.233048,0.00028876,7]
[364869747,1749282720506,-562.233048,0.00028876,7]
[364869748,1749282720515,-192.062464,0.00028876,7]
[364869749,1749282720524,-182.368168,0.00028876,7]
[364869750,1749282720535,-182.368168,0.00028876,7]
[364869751,1749282720545,-151.0,0.00028876,7]
[364869752,1749282720556,-151.0,0.00028876,7]
[364869753,1749282720566,-336.53621,0.00028876,7]
[364869754,1749282720575,-151.0,0.00028876,7]
[364869755,1749282720585,-336.53621,0.00028876,7]
[364869756,1749282720595,-202.3884,0.00028876,7]
[364869757,1749282720605,-202.3884,0.00028876,7]
[364869758,1749282720615,-199.862751,0.00028876,7]
[364869759,1749282720624,-199.862751,0.00028876,7]
[364869760,1749282720634,-151.0,0.00028876,7]
[364869761,1749282720644,-225.218056,0.00028876,7]
[364869762,1749282720653,-204.630289,0.00028876,7]
[364869763,1749282720663,-335.472379,0.00028876,7]
[364869764,1749282720673,-335.472379,0.00028876,7]
[364869765,1749282720682,-151.0,0.00028876,7]
[364869766,1749282720692,-154.25564,0.00028876,7]
[364869767,1749282720702,-154.25564,0.00028876,7]
[364869768,1749282720712,-151.0,0.00028876,7]
[364869769,1749282720722,-171.882811,0.00028876,7]
[364869770,1749282720731,-171.882811,0.00028876,7]
[364869771,1749282720741,-151.0,0.00028876,7]
[364869772,1749282720751,-961.409907,0.00028876,7]
[364869773,1749282720760,-961.409907,0.00028876,7]
[364869774,1749282720770,-151.0,0.00028876,7]
[364869775,1749282720779,-151.0,0.00028876,7]
[364869776,1749282720790,-258.138741,0.00028876,7]
[364869777,1749282720800,-258.138741,0.00028876,7]
[364869778,1749282720810,-151.0,0.00028876,7]
[364869779,1749282720819,-308.719033,0.00028876,7]
[364869780,1749282720828,-308.719033,0.00028876,7]
[364869781,1749282720839,-1128.633104,0.00028876,7]
[364869782,1749282720849,-1128.633094,0.00028876,7]
[364869783,1749282720859,-151.0,0.00028876,7]
[364869784,1749282720869,-1106.284742,0.00028876,7]
[364869785,1749282720879,-1106.284744,0.00028876,7]
[364869786,1749282720894,-1077.542394,0.00028876,7]
[364869787,1749282720904,-1077.542394,0.00028876,7]
[364869788,1749282720914,-1715.887585,0.00028876,5]
[364869789,1749282720930,-2102.121321,0.00028876,5]
[364869790,1749282720940,-191.39999253,0.00028876,5]
[364869791,1749282720950,-480.0,0.00028876,5]
[364869792,1749282720962,-495.78,0.00028876,5]
[364869793,1749282720972,-480.0,0.00028876,5]
[364869794,1749282720983,-813.01,0.00028876,5]
[364869795,1749282720993,-480.0,0.00028876,5]
[364869796,1749282721003,-480.0,0.00028876,5]
[364869797,1749282721013,-480.0,0.00028876,5]
[364869798,1749282721024,-480.0,0.00028876,5]
[364869799,1749282721035,-480.0,0.00028876,5]
[364869800,1749282721047,-480.0,0.00028876,5]
[364869801,1749282721057,-480.0,0.00028876,2]
[364869802,1749282721067,-480.0,0.00028876,2]
[364869803,1749282721077,-480.0,0.00028876,5]
[364869804,1749282721087,-577.15,0.00028876,5]
[364869805,1749282721097,-480.0,0.00028876,5]
[364869806,1749282721106,-509.8,0.00028876,5]
[364869807,1749282721116,-480.0,0.00028876,5]
[364869808,1749282721125,-480.0,0.00028876,5]
[364869809,1749282721136,-582.54654786,0.00028876,2]
[364869810,1749282721146,-480.0,0.00028876,5]
[364869811,1749282721155,-480.0,0.00028876,5]
[364869812,1749282721165,-480.0,0.00028876,5]
[364869813,1749282721175,-618.47,0.00028876,5]
[364869814,1749282721185,-842.56,0.00028876,5]
[364869815,1749282721196,-480.0,0.00028876,5]
[364869816,1749282721205,-1163.74,0.00028876,5]
[364869817,1749282721216,-807.84,0.00028876,5]
[364869818,1749282721226,-155.707702,0.00028876,5]
[364869819,1749282721235,-526.5,0.00028876,5]
[364869820,1749282721245,-480.0,0.00028876,5]
[364869821,1749282721256,-722.49,0.00028876,5]
[364869822,1749282721266,-480.0,0.00028876,5]
[364869823,1749282721276,-658.07,0.00028876,5]
[364869824,1749282721285,-480.0,0.00028876,5]
[364869825,1749282721295,-548.11,0.00028876,5]
[364869826,1749282721304,-480.0,0.00028876,5]
[364869827,1749282721315,-480.0,0.00028876,5]
[364869828,1749282721325,-1423.16,0.00028876,5]
[364869829,1749282721335,-676.89,0.00028876,5]
[364869830,1749282721345,-1030.91,0.00028876,5]
[364869831,1749282721355,-480.0,0.00028876,5]
[364869832,1749282721365,-903.48,0.00028876,5]
[364869833,1749282721375,-545.14,0.00028876,5]
[364869834,1749282721386,-580.63,0.00028876,5]
[364869835,1749282721397,-624.11,0.00028876,5]
[364869836,1749282721407,-480.0,0.00028876,5]
[364869837,1749282721417,-480.0,0.00028876,5]
[364869838,1749282721427,-480.0,0.00028876,5]
[364869839,1749282721438,-1137.84,0.00028876,5]
[364869840,1749282721448,-1026.76,0.00028876,5]
[364869841,1749282721457,-480.0,0.00028876,5]
[364869842,1749282721467,-1323.94,0.00028876,5]
[364869843,1749282721479,-1037.35,0.00028876,5]
[364869844,1749282721488,-480.0,0.00028876,5]
[364869845,1749282721499,-480.0,0.00028876,5]
[364869846,1749282721508,-1212.38,0.00028876,5]
[364869847,1749282721519,-480.0,0.00028876,5]
[364869848,1749282721529,-713.0,0.00028876,5]
[364869849,1749282721539,-811.35,0.00028876,5]
[364869850,1749282721549,-480.0,0.00028876,5]
[364869851,1749282721559,-634.26,0.00028876,5]
[364869852,1749282721570,-1174.57,0.00028876,5]
[364869853,1749282721580,-737.61,0.00028876,5]
[364869854,1749282721589,-1789.64,0.00028876,5]
[364869855,1749282721600,-480.0,0.00028876,5]
[364869856,1749282721611,-480.0,0.00028876,5]
[364869857,1749282721621,-480.0,0.00028876,5]
[364869858,1749282721631,-480.0,0.00028876,5]
[364869859,1749282721640,-835.68,0.00028876,5]
[364869860,1749282721650,-476.0825683,0.00028876,5]
[364869861,1749282721659,-1115.25,0.00028876,5]
[364869862,1749282721669,-984.78,0.00028876,5]
[364869863,1749282721679,-611.81,0.00028876,5]
[364869864,1749282721689,-592.62,0.00028876,5]
[364869865,1749282721699,-480.0,0.00028876,5]
[364869866,1749282721710,-480.0,0.00028876,5]
[364869867,1749282721720,-480.0,0.00028876,5]
[364869868,1749282721731,-337.05142663,0.00028876,5]
[364869869,1749282721741,-480.0,0.00028876,5]
[364869870,1749282721751,-2016.63,0.00028876,5]
[364869871,1749282721761,-480.0,0.00028876,5]
[364869872,1749282721771,-480.0,0.00028876,5]
[364869873,1749282721782,-1504.99,0.00028876,5]
[364869874,1749282721793,-652.14,0.00028876,5]
[364869875,1749282721802,-601.8,0.00028876,5]
[364869876,1749282721812,-1444.88,0.00028876,5]
[364869877,1749282721822,-787.2,0.00028876,5]
[364869878,1749282721831,-658.72,0.00028876,5]
[364869879,1749282721841,-853.62,0.00028876,5]
[364869880,1749282721853,-879.54,0.00028876,5]
[364869881,1749282721863,-480.0,0.00028876,5]
[364869882,1749282721873,-753.65,0.00028876,5]
[364869883,1749282721888,-990.87,0.00028876,5]
[364869884,1749282721898,-480.0,0.00028876,5]
[364869885,1749282721916,-1000.0,0.00028876,5]
[364869886,1749282721926,-850.33,0.00028876,5]
[364869887,1749282721936,-494.24,0.00028876,5]
[364869888,1749282721946,-424.64933847,0.00028876,5]
[364869889,1749282721956,-614.65,0.00028876,5]
[364869890,1749282721966,-768.49,0.00028876,5]
[364869891,1749282721975,-620.08,0.00028876,5]
[364869892,1749282721987,-480.0,0.00028876,5]
[364869893,1749282721996,-1066.78,0.00028876,5]
[364869894,1749282722006,-702.18,0.00028876,5]
[364869895,1749282722016,-715.95,0.00028876,5]
[364869896,1749282722026,-480.0,0.00028876,5]
[364869897,1749282722037,-480.0,0.00028876,5]
[364869898,1749282722047,-656.54,0.00028876,5]
[364869899,1749282722056,-871.81,0.00028876,5]
[364869900,1749282722066,-674.63,0.00028876,5]
[364869901,1749282722075,-607.29,0.00028876,5]
[364869902,1749282722085,-647.25,0.00028876,5]
[364869903,1749282722094,-867.98,0.00028876,5]
[364869904,1749282722104,-1182.54,0.00028876,5]
[364869905,1749282722113,-480.0,0.00028876,5]
[364869906,1749282722123,-1150.03,0.00028876,5]
[364869907,1749282722132,-1505.03,0.00028876,5]
[364869908,1749282722143,-1473.87,0.00028876,5]
[364869909,1749282722152,-2996.31,0.00028876,5]
[364869910,1749282722161,-2181.17,0.00028876,5]
[364869911,1749282722171,-930.43,0.00028876,5]
[364869912,1749282722181,-7442.14,0.00028876,5]
[364869913,1749282722191,-480.0,0.00028876,5]
[364869914,1749282722200,-5891.72,0.00028876,5]
[364869915,1749282722210,-4307.55,0.00028876,5]
[364869916,1749282722219,-956.19,0.00028876,5]
[364869917,1749282722228,-798.07,0.00028876,5]
[364869918,1749282722238,-1206.45,0.00028876,5]
[364869919,1749282722247,-480.0,0.00028876,5]
[364869920,1749282722256,-480.0,0.00028876,5]
[364869921,1749282722266,-1267.21,0.00028876,5]
[364869922,1749282722276,-480.0,0.00028876,5]
[364869923,1749282722286,-480.0,0.00028876,5]
[364869924,1749282722296,-5617.32,0.00028876,5]
[364869925,1749282722306,-798.33,0.00028876,5]
[364869926,1749282722316,-1111.08,0.00028876,5]
[364869927,1749282722326,-1613.36,0.00028876,5]
[364869928,1749282722337,-665.13,0.00028876,5]
[364869929,1749282722347,-984.27,0.00028876,5]
[364869930,1749282722357,-8194.39,0.00028876,5]
[364869931,1749282722368,-10955.06,0.00028876,5]
[364869932,1749282722378,-556.78132379,0.00028876,5]
[364869933,1749282722388,-835.03,0.00028876,5]
[364869934,1749282722399,-3592.23,0.00028876,5]
[364869935,1749282722412,-675.89,0.00028876,5]
[364869936,1749282722423,-480.0,0.00028876,5]
[364869937,1749282722433,-1342.98,0.00028876,5]
[364869938,1749282722444,-3803.92,0.00028876,5]
[364869939,1749282722455,-2538.94,0.00028876,5]
[364869940,1749282722466,-1427.01,0.00028876,5]